{"text_format":"3","workbook":"xlsx","n_sheets":2,"sheets":["MULAI","LEMBAR WAKTU TAHUNAN"],"not_rendered":{"defined_names":2},"read":"whole","date_system":"1900"}

{"sheet":"MULAI","index":0,"n_rows":8,"n_cols":2,"rows_kept":8}
[null,"TENTANG TEMPLAT INI"]
[null,"Lacak jam kerja harian, mingguan, bulanan, dan tahunan dalam Kartu Waktu Karyawan ini."]
[null,"Isi informasi dasar, seperti Nama Karyawan, Nama Manajer, Alamat email, dan Nomor telepon. "]
[null,"Tambahkan jam kerja Anda ke setiap tabel bulan. Catat jam reguler dan jam lembur dalam kolom terpisah untuk setiap hari dalam seminggu. "]
[null,"Total Jam Kerja, Jam Reguler, dan Jam Lembur akan dihitung secara otomatis. "]
[null,"Catatan:"]
[null,"Instruksi Tambahan telah tersedia dalam kolom A di lembar kerja LEMBAR WAKTU TAHUNAN. Teks ini disembunyikan secara sengaja. Untuk menghapus teks, pilih kolom A, lalu pilih HAPUS. Untuk memperlihatkan teks, pilih kolom A, lalu ubah warna font. "]
[null,"Untuk mempelajari selengkapnya tentang tabel, tekan SHIFT kemudian F10 di dalam tabel, pilih opsi TABEL, lalu pilih TEKS ALTERNATIF."]

{"sheet":"LEMBAR WAKTU TAHUNAN","index":1,"n_rows":132,"n_cols":15,"rows_kept":132,"merged":[[0,1,0,2],[0,4,0,14],[10,6,10,7],[21,6,21,7],[32,6,32,7],[33,4,33,14],[43,6,43,7],[54,6,54,7],[65,6,65,7],[66,4,66,14],[76,6,76,7],[87,6,87,7],[98,6,98,7],[99,4,99,14],[109,6,109,7],[120,6,120,7],[131,6,131,7]]}
["Buat lembar waktu Karyawan harian, mingguan, bulanan, atau tahunan dalam lembar kerja ini. \nInstruksi bermanfaat tentang cara menggunakan buku kerja berada dalam sel di kolom ini. Tekan panah bawah untuk memulai.\nJudul lembar kerja ini berada dalam sel di sebelah kanan. Judul kuartal bulan Januari, Februari, dan Maret berada dalam sel E1.","KARTU WAKTU \nKARYAWAN",null,null,"Januari, Februari, Maret      Kartu Waktu Karyawan: Harian, Mingguan, Bulanan, Tahunan"]
["Masukkan Nama Karyawan dalam sel C2, dan jam reguler serta lembur ke dalam tabel Januari mulai dari sel E2.","Nama Karyawan:",null,null,"Januari","Minggu 1","Lembur","Minggu 2","Lembur  ","Minggu 3","Lembur   ","Minggu 4","Lembur    ","Minggu 5","Lembur     "]
["Masukkan nama Manajer dalam sel C3.","Manajer:",null,null,"Senin",{"v":8,"d":"8.0"}]
["Masukkan alamat Email dalam sel C4.","Email:",null,null,"Selasa",{"v":8,"d":"8.0"},{"v":2,"d":"2.0"}]
["Masukkan nomor Telepon dalam sel C5. Instruksi berikutnya berada dalam sel A9.","Telepon:",null,null,"Rabu"]
[{"$nulls":4},"Kamis"]
[{"$nulls":4},"Jumat"]
[{"$nulls":4},"Sabtu"]
["Total jam reguler tahunan akan dihitung secara otomatis dalam sel C9.","Jam Reguler:",{"$f":"JamReguler","v":31},null,"Minggu"]
["Total jam lembur tahunan akan dihitung secara otomatis dalam sel C10.","Jam Lembur:",{"$f":"Jam_lembur","v":4},null,"Total jam mingguan",{"$f":"SUM(F3:F9)","v":{"v":16,"d":"16.0"}},{"v":2,"d":"2.0"},{"v":0,"d":"0.0"},{"v":0,"d":"0.0"},{"v":0,"d":"0.0"},{"v":0,"d":"0.0"},{"v":0,"d":"0.0"},{"v":0,"d":"0.0"},{"v":0,"d":"0.0"},{"v":0,"d":"0.0"}]
["Total keseluruhan jam tahunan akan dihitung secara otomatis dalam sel C11. Total jam reguler bulan Januari dalam sel F11 dan total jam lembur bulan Januari dalam sel I11 akan dihitung secara otomatis. Instruksi berikutnya berada dalam sel A13.","Total",{"$f":"JamReguler+Jam_lembur","v":35},null,{"$f":"TEXT(DATEVALUE(Januari[[#Headers],[Januari]]&\"  \"&YEAR(TODAY())),\"mmm.\")&\" total: Jam Reguler\"","v":"Jan. total: Jam Reguler"},{"$f":"SUM(Januari[Minggu 1],Januari[Minggu 2],Januari[Minggu 3],Januari[Minggu 4],Januari[Minggu 5])","v":{"v":16,"d":"16.0"}},{"$f":"TEXT(DATEVALUE(Januari[[#Headers],[Januari]]&\"  \"&YEAR(TODAY())),\"mmm.\")&\" total: Jam Lembur\"","v":"Jan. total: Jam Lembur"},null,{"$f":"SUM(Januari[Lembur],Januari[[Lembur  ]],Januari[[Lembur   ]],Januari[[Lembur    ]],Januari[[Lembur     ]])","v":{"v":2,"d":"2.0"}}]
[]
["Masukkan jam reguler dan jam lembur dalam tabel bulan Februari dimulai di sel E13. Instruksi berikutnya berada dalam sel A22.",{"$nulls":3},"Februari","Minggu 1","Lembur","Minggu 2","Lembur  ","Minggu 3","Lembur   ","Minggu 4","Lembur    ","Minggu 5","Lembur     "]
[{"$nulls":4},"Senin",{"v":8,"d":"8.0"}]
[{"$nulls":4},"Selasa",{"v":7,"d":"7.0"},{"v":2,"d":"2.0"}]
[{"$nulls":4},"Rabu"]
[{"$nulls":4},"Kamis"]
[{"$nulls":4},"Jumat"]
[{"$nulls":4},"Sabtu"]
[{"$nulls":4},"Minggu"]
[{"$nulls":4},"Total jam mingguan",{"$f":"SUM(F14:F20)","v":{"v":15,"d":"15.0"}},{"v":2,"d":"2.0"},{"v":0,"d":"0.0"},{"v":0,"d":"0.0"},{"v":0,"d":"0.0"},{"v":0,"d":"0.0"},{"v":0,"d":"0.0"},{"v":0,"d":"0.0"},{"v":0,"d":"0.0"},{"v":0,"d":"0.0"}]
["Total jam reguler bulan Februari dalam sel F22 dan total jam lembur bulan Februari dalam sel I22 akan dihitung secara otomatis. Instruksi berikutnya berada dalam sel A24.",{"$nulls":3},{"$f":"TEXT(DATEVALUE(Februari[[#Headers],[Februari]]&\"  \"&YEAR(TODAY())),\"mmm.\")&\" total: Jam Reguler\"","v":"Feb. total: Jam Reguler"},{"$f":"SUM(Februari[Minggu 1],Februari[Minggu 2],Februari[Minggu 3],Februari[Minggu 4],Februari[Minggu 5])","v":{"v":15,"d":"15.0"}},{"$f":"TEXT(DATEVALUE(Februari[[#Headers],[Februari]]&\" \"&YEAR(TODAY())),\"mmm.\")&\" total: Jam Lembur\"","v":"Feb. total: Jam Lembur"},null,{"$f":"SUM(Februari[Lembur],Februari[[Lembur  ]],Februari[[Lembur   ]],Februari[[Lembur    ]],Februari[[Lembur     ]])","v":{"v":2,"d":"2.0"}}]
[]
["Masukkan jam reguler dan jam lembur dalam tabel bulan Maret mulai dari sel E24. Instruksi berikutnya berada dalam sel A33.",{"$nulls":3},"Maret","Minggu 1","Lembur","Minggu 2","Lembur ","Minggu 3","Lembur  ","Minggu 4","Lembur    ","Minggu 5","Lembur     "]
[{"$nulls":4},"Senin"]
[{"$nulls":4},"Selasa"]
[{"$nulls":4},"Rabu"]
[{"$nulls":4},"Kamis"]
[{"$nulls":4},"Jumat"]
[{"$nulls":4},"Sabtu"]
[{"$nulls":4},"Minggu"]
[{"$nulls":4},"Total jam mingguan",{"$f":"SUM(F25:F31)","v":{"v":0,"d":"0.0"}},{"v":0,"d":"0.0"},{"v":0,"d":"0.0"},{"v":0,"d":"0.0"},{"v":0,"d":"0.0"},{"v":0,"d":"0.0"},{"v":0,"d":"0.0"},{"v":0,"d":"0.0"},{"v":0,"d":"0.0"},{"v":0,"d":"0.0"}]
["Total jam reguler bulan Maret dalam sel F33 dan total jam lembur bulan Maret dalam sel I33 akan dihitung secara otomatis.",{"$nulls":3},{"$f":"TEXT(DATEVALUE(Maret[[#Headers],[Maret]]&\" \"&YEAR(TODAY())),\"mmm.\")&\" total: Jam Reguler\"","v":"Mar. total: Jam Reguler"},{"$f":"SUM(Maret[Minggu 1],Maret[Minggu 2],Maret[Minggu 3],Maret[Minggu 4],Maret[Minggu 5])","v":{"v":0,"d":"0.0"}},{"$f":"TEXT(DATEVALUE(Maret[[#Headers],[Maret]]&\" \"&YEAR(TODAY())),\"mmm.\")&\" total: Jam Lembur\"","v":"Mar. total: Jam Lembur"},null,{"$f":"SUM(Maret[Lembur],Maret[[Lembur ]],Maret[[Lembur  ]],Maret[[Lembur    ]],Maret[[Lembur     ]])","v":{"v":0,"d":"0.0"}}]
["Judul kuartal kedua bulan April, Mei, dan Juni berada dalam sel E34. ",{"$nulls":3},"April, Mei, Juni      Kartu Waktu Karyawan: Harian, Mingguan, Bulanan, Tahunan"]
["Masukkan jam reguler dan jam lembur untuk bulan April dalam tabel mulai dari sel E35. Instruksi berikutnya berada dalam sel A44.",{"$nulls":3},"April","Minggu 1","Lembur","Minggu 2","Lembur  ","Minggu 3","Lembur   ","Minggu 4","Lembur    ","Minggu 5","Lembur     "]
[{"$nulls":4},"Senin"]
[{"$nulls":4},"Selasa"]
[{"$nulls":4},"Rabu"]
[{"$nulls":4},"Kamis"]
[{"$nulls":4},"Jumat"]
[{"$nulls":4},"Sabtu"]
[{"$nulls":4},"Minggu"]
[{"$nulls":4},"Total jam mingguan",{"$f":"SUM(F36:F42)","v":{"v":0,"d":"0.0"}},{"v":0,"d":"0.0"},{"v":0,"d":"0.0"},{"v":0,"d":"0.0"},{"v":0,"d":"0.0"},{"v":0,"d":"0.0"},{"v":0,"d":"0.0"},{"v":0,"d":"0.0"},{"v":0,"d":"0.0"},{"v":0,"d":"0.0"}]
["Total jam reguler bulan April dalam sel F44 dan total jam lembur bulan April dalam sel I44 akan dihitung secara otomatis. Instruksi berikutnya berada dalam sel A46.",{"$nulls":3},{"$f":"TEXT(DATEVALUE(April[[#Headers],[April]]&\" \"&YEAR(TODAY())),\"mmm.\")&\" total: Jam Reguler\"","v":"Apr. total: Jam Reguler"},{"$f":"SUM(April[Minggu 1],April[Minggu 2],April[Minggu 3],April[Minggu 4],April[Minggu 5])","v":{"v":0,"d":"0.0"}},{"$f":"TEXT(DATEVALUE(April[[#Headers],[April]]&\" \"&YEAR(TODAY())),\"mmm.\")&\" total: Jam Lembur\"","v":"Apr. total: Jam Lembur"},null,{"$f":"SUM(April[Lembur],April[[Lembur  ]],April[[Lembur   ]],April[[Lembur    ]],April[[Lembur     ]])","v":{"v":0,"d":"0.0"}}]
[]
["Masukkan jam reguler dan jam lembur untuk bulan Mei dalam tabel mulai dari sel E46. Instruksi berikutnya berada dalam sel A55.",{"$nulls":3},"Mei","Minggu 1","Lembur","Minggu 2","Lembur  ","Minggu 3","Lembur   ","Minggu 4","Lembur    ","Minggu 5","Lembur     "]
[{"$nulls":4},"Senin"]
[{"$nulls":4},"Selasa"]
[{"$nulls":4},"Rabu"]
[{"$nulls":4},"Kamis"]
[{"$nulls":4},"Jumat"]
[{"$nulls":4},"Sabtu"]
[{"$nulls":4},"Minggu"]
[{"$nulls":4},"Total jam mingguan",{"$f":"SUM(F47:F53)","v":{"v":0,"d":"0.0"}},{"v":0,"d":"0.0"},{"v":0,"d":"0.0"},{"v":0,"d":"0.0"},{"v":0,"d":"0.0"},{"v":0,"d":"0.0"},{"v":0,"d":"0.0"},{"v":0,"d":"0.0"},{"v":0,"d":"0.0"},{"v":0,"d":"0.0"}]
["Total jam reguler bulan Mei dalam sel F55 dan total jam lembur bulan Mei dalam sel I55 akan dihitung secara otomatis. Instruksi berikutnya berada dalam sel A57.",{"$nulls":3},{"$f":"TEXT(DATEVALUE(Mei[[#Headers],[Mei]]&\" \"&YEAR(TODAY())),\"mmm.\")&\" total: Jam Reguler\"","v":"Mei. total: Jam Reguler"},{"$f":"SUM(Mei[Minggu 1],Mei[Minggu 2],Mei[Minggu 3],Mei[Minggu 4],Mei[Minggu 5])","v":{"v":0,"d":"0.0"}},{"$f":"TEXT(DATEVALUE(Mei[[#Headers],[Mei]]&\" \"&YEAR(TODAY())),\"mmm.\")&\" total: Jam Lembur\"","v":"Mei. total: Jam Lembur"},null,{"$f":"SUM(Mei[Lembur],Mei[[Lembur  ]],Mei[[Lembur   ]],Mei[[Lembur    ]],Mei[[Lembur     ]])","v":{"v":0,"d":"0.0"}}]
[]
["Masukkan jam reguler dan jam lembur untuk bulan Juni dalam tabel mulai dari sel E57. Instruksi berikutnya berada dalam sel A66.",{"$nulls":3},"Juni","Minggu 1","Lembur","Minggu 2","Lembur  ","Minggu 3","Lembur   ","Minggu 4","Lembur    ","Minggu 5","Lembur     "]
[{"$nulls":4},"Senin"]
[{"$nulls":4},"Selasa"]
[{"$nulls":4},"Rabu"]
[{"$nulls":4},"Kamis"]
[{"$nulls":4},"Jumat"]
[{"$nulls":4},"Sabtu"]
[{"$nulls":4},"Minggu"]
[{"$nulls":4},"Total jam mingguan",{"$f":"SUM(F58:F64)","v":{"v":0,"d":"0.0"}},{"v":0,"d":"0.0"},{"v":0,"d":"0.0"},{"v":0,"d":"0.0"},{"v":0,"d":"0.0"},{"v":0,"d":"0.0"},{"v":0,"d":"0.0"},{"v":0,"d":"0.0"},{"v":0,"d":"0.0"},{"v":0,"d":"0.0"}]
["Total jam reguler bulan Juni dalam sel F66 dan total jam lembur bulan Juni dalam sel I66 akan dihitung secara otomatis.",{"$nulls":3},{"$f":"TEXT(DATEVALUE(Juni[[#Headers],[Juni]]&\" \"&YEAR(TODAY())),\"mmm.\")&\" total: Jam Reguler\"","v":"Jun. total: Jam Reguler"},{"$f":"SUM(Juni[Minggu 1],Juni[Minggu 2],Juni[Minggu 3],Juni[Minggu 4],Juni[Minggu 5])","v":{"v":0,"d":"0.0"}},{"$f":"TEXT(DATEVALUE(Juni[[#Headers],[Juni]]&\" \"&YEAR(TODAY())),\"mmm.\")&\" total: Jam Lembur\"","v":"Jun. total: Jam Lembur"},null,{"$f":"SUM(Juni[Lembur],Juni[[Lembur  ]],Juni[[Lembur   ]],Juni[[Lembur    ]],Juni[[Lembur     ]])","v":{"v":0,"d":"0.0"}}]
["Judul kuartal ketiga bulan Juli, Agustus, dan September berada dalam sel E67. ",{"$nulls":3},"Juli, Agustus, September      Kartu Waktu Karyawan: Harian, Mingguan, Bulanan, Tahunan"]
["Masukkan jam reguler dan jam lembur untuk bulan Juli dalam tabel mulai dari sel E68. Instruksi berikutnya berada dalam sel A77.",{"$nulls":3},"Juli","Minggu 1","Lembur","Minggu 2","Lembur ","Minggu 3","Lembur  ","Minggu 4","Lembur   ","Minggu 5","Lembur     "]
[{"$nulls":4},"Senin"]
[{"$nulls":4},"Selasa"]
[{"$nulls":4},"Rabu"]
[{"$nulls":4},"Kamis"]
[{"$nulls":4},"Jumat"]
[{"$nulls":4},"Sabtu"]
[{"$nulls":4},"Minggu"]
[{"$nulls":4},"Total jam mingguan",{"$f":"SUM(F69:F75)","v":{"v":0,"d":"0.0"}},{"v":0,"d":"0.0"},{"v":0,"d":"0.0"},{"v":0,"d":"0.0"},{"v":0,"d":"0.0"},{"v":0,"d":"0.0"},{"v":0,"d":"0.0"},{"v":0,"d":"0.0"},{"v":0,"d":"0.0"},{"v":0,"d":"0.0"}]
["Total jam reguler bulan Juli dalam sel F77 dan total jam lembur bulan Juli dalam sel I77 akan dihitung secara otomatis. Instruksi berikutnya berada dalam sel A79.",{"$nulls":3},{"$f":"TEXT(DATEVALUE(Juli[[#Headers],[Juli]]&\" \"&YEAR(TODAY())),\"mmm.\")&\" total: Jam Reguler\"","v":"Jul. total: Jam Reguler"},{"$f":"SUM(Juli[Minggu 1],Juli[Minggu 2],Juli[Minggu 3],Juli[Minggu 4],Juli[Minggu 5])","v":{"v":0,"d":"0.0"}},{"$f":"TEXT(DATEVALUE(Juli[[#Headers],[Juli]]&\" \"&YEAR(TODAY())),\"mmm.\")&\" total: Jam Lembur\"","v":"Jul. total: Jam Lembur"},null,{"$f":"SUM(Juli[Lembur],Juli[[Lembur ]],Juli[[Lembur  ]],Juli[[Lembur   ]],Juli[[Lembur     ]])","v":{"v":0,"d":"0.0"}}]
[]
["Masukkan jam reguler dan jam lembur untuk bulan Agustus dalam tabel mulai dari sel E79. Instruksi berikutnya berada dalam sel A88.",{"$nulls":3},"Agustus","Minggu 1","Lembur","Minggu 2","Lembur ","Minggu 3","Lembur   ","Minggu 4","Lembur  ","Minggu 5","Lembur    "]
[{"$nulls":4},"Senin"]
[{"$nulls":4},"Selasa"]
[{"$nulls":4},"Rabu"]
[{"$nulls":4},"Kamis"]
[{"$nulls":4},"Jumat"]
[{"$nulls":4},"Sabtu"]
[{"$nulls":4},"Minggu"]
[{"$nulls":4},"Total jam mingguan",{"$f":"SUBTOTAL(109,Agustus[Minggu 1])","v":{"v":0,"d":"0.0"}},{"$f":"SUBTOTAL(109,Agustus[Lembur])","v":{"v":0,"d":"0.0"}},{"$f":"SUBTOTAL(109,Agustus[Minggu 2])","v":{"v":0,"d":"0.0"}},{"$f":"SUBTOTAL(109,Agustus[[Lembur ]])","v":{"v":0,"d":"0.0"}},{"$f":"SUBTOTAL(109,Agustus[Minggu 3])","v":{"v":0,"d":"0.0"}},{"$f":"SUBTOTAL(109,Agustus[[Lembur   ]])","v":{"v":0,"d":"0.0"}},{"$f":"SUBTOTAL(109,Agustus[Minggu 4])","v":{"v":0,"d":"0.0"}},{"$f":"SUBTOTAL(109,Agustus[[Lembur  ]])","v":{"v":0,"d":"0.0"}},{"$f":"SUBTOTAL(109,Agustus[Minggu 5])","v":{"v":0,"d":"0.0"}},{"$f":"SUBTOTAL(109,Agustus[[Lembur    ]])","v":{"v":0,"d":"0.0"}}]
["Total jam reguler bulan Agustus dalam sel F88 dan total jam lembur bulan Agustus dalam sel I88 akan dihitung secara otomatis. Instruksi berikutnya berada dalam sel A90.",{"$nulls":3},{"$f":"TEXT(DATEVALUE(Agustus[[#Headers],[Agustus]]&\" \"&YEAR(TODAY())),\"mmm.\")&\" total: Jam Reguler\"","v":"Agu. total: Jam Reguler"},{"$f":"SUM(Agustus[Minggu 1],Agustus[Minggu 2],Agustus[Minggu 3],Agustus[Minggu 4],Agustus[Minggu 5])","v":{"v":0,"d":"0.0"}},{"$f":"TEXT(DATEVALUE(Agustus[[#Headers],[Agustus]]&\" \"&YEAR(TODAY())),\"mmm.\")&\" total: Jam Lembur\"","v":"Agu. total: Jam Lembur"},null,{"$f":"SUM(Agustus[Lembur],Agustus[[Lembur ]],Agustus[[Lembur   ]],Agustus[[Lembur  ]],Agustus[[Lembur    ]])","v":{"v":0,"d":"0.0"}}]
[]
["Masukkan jam reguler dan jam lembur untuk bulan September dalam tabel mulai dari sel E90. Instruksi berikutnya berada dalam sel A99.",{"$nulls":3},"September","Minggu 1","Lembur","Minggu 2","Lembur ","Minggu 3","Lembur  ","Minggu 4","Lembur   ","Minggu 5","Lembur    "]
[{"$nulls":4},"Senin"]
[{"$nulls":4},"Selasa"]
[{"$nulls":4},"Rabu"]
[{"$nulls":4},"Kamis"]
[{"$nulls":4},"Jumat"]
[{"$nulls":4},"Sabtu"]
[{"$nulls":4},"Minggu"]
[{"$nulls":4},"Total jam mingguan",{"$f":"SUBTOTAL(109,September[Minggu 1])","v":{"v":0,"d":"0.0"}},{"$f":"SUBTOTAL(109,September[Lembur])","v":{"v":0,"d":"0.0"}},{"$f":"SUBTOTAL(109,September[Minggu 2])","v":{"v":0,"d":"0.0"}},{"$f":"SUBTOTAL(109,September[[Lembur ]])","v":{"v":0,"d":"0.0"}},{"$f":"SUBTOTAL(109,September[Minggu 3])","v":{"v":0,"d":"0.0"}},{"$f":"SUBTOTAL(109,September[[Lembur  ]])","v":{"v":0,"d":"0.0"}},{"$f":"SUBTOTAL(109,September[Minggu 4])","v":{"v":0,"d":"0.0"}},{"$f":"SUBTOTAL(109,September[[Lembur   ]])","v":{"v":0,"d":"0.0"}},{"$f":"SUBTOTAL(109,September[Minggu 5])","v":{"v":0,"d":"0.0"}},{"$f":"SUBTOTAL(109,September[[Lembur    ]])","v":{"v":0,"d":"0.0"}}]
["Total jam reguler bulan September dalam sel F99 dan total jam lembur bulan September dalam sel I99 akan dihitung secara otomatis.",{"$nulls":3},{"$f":"TEXT(DATEVALUE(September[[#Headers],[September]]&\" \"&YEAR(TODAY())),\"mmm.\")&\" total: Jam Reguler\"","v":"Sep. total: Jam Reguler"},{"$f":"SUM(September[Minggu 1],September[Minggu 2],September[Minggu 3],September[Minggu 4],September[Minggu 5])","v":{"v":0,"d":"0.0"}},{"$f":"TEXT(DATEVALUE(September[[#Headers],[September]]&\" \"&YEAR(TODAY())),\"mmm.\")&\" total: Jam Lembur\"","v":"Sep. total: Jam Lembur"},null,{"$f":"SUM(September[Lembur],September[[Lembur ]],September[[Lembur  ]],September[[Lembur   ]],September[[Lembur    ]])","v":{"v":0,"d":"0.0"}}]
["Judul kuartal keempat bulan Oktober, November, dan Desember berada dalam sel E100. ",{"$nulls":3},"Oktober, November, Desember      Kartu Waktu Karyawan: Harian, Mingguan, Bulanan, Tahunan"]
["Masukkan jam reguler dan jam lembur untuk bulan Oktober dalam tabel mulai dari sel E101. Instruksi berikutnya berada dalam sel A110.",{"$nulls":3},"Oktober","Minggu 1","Lembur","Minggu 2","Lembur ","Minggu 3","Lembur  ","Minggu 4","Lembur   ","Minggu 5","Lembur    "]
[{"$nulls":4},"Senin"]
[{"$nulls":4},"Selasa"]
[{"$nulls":4},"Rabu"]
[{"$nulls":4},"Kamis"]
[{"$nulls":4},"Jumat"]
[{"$nulls":4},"Sabtu"]
[{"$nulls":4},"Minggu"]
[{"$nulls":4},"Total jam mingguan",{"$f":"SUBTOTAL(109,Oktober[Minggu 1])","v":{"v":0,"d":"0.0"}},{"$f":"SUBTOTAL(109,Oktober[Lembur])","v":{"v":0,"d":"0.0"}},{"$f":"SUBTOTAL(109,Oktober[Minggu 2])","v":{"v":0,"d":"0.0"}},{"$f":"SUBTOTAL(109,Oktober[[Lembur ]])","v":{"v":0,"d":"0.0"}},{"$f":"SUBTOTAL(109,Oktober[Minggu 3])","v":{"v":0,"d":"0.0"}},{"$f":"SUBTOTAL(109,Oktober[[Lembur  ]])","v":{"v":0,"d":"0.0"}},{"$f":"SUBTOTAL(109,Oktober[Minggu 4])","v":{"v":0,"d":"0.0"}},{"$f":"SUBTOTAL(109,Oktober[[Lembur   ]])","v":{"v":0,"d":"0.0"}},{"$f":"SUBTOTAL(109,Oktober[Minggu 5])","v":{"v":0,"d":"0.0"}},{"$f":"SUBTOTAL(109,Oktober[[Lembur    ]])","v":{"v":0,"d":"0.0"}}]
["Total jam reguler bulan Oktober dalam sel F110 dan total jam lembur bulan Oktober dalam sel I110 akan dihitung secara otomatis. Instruksi berikutnya berada dalam sel A112.",{"$nulls":3},{"$f":"TEXT(DATEVALUE(Oktober[[#Headers],[Oktober]]&\" \"&YEAR(TODAY())),\"mmm.\")&\" total: Jam Reguler\"","v":"Okt. total: Jam Reguler"},{"$f":"SUM(Oktober[Minggu 1],Oktober[Minggu 2],Oktober[Minggu 3],Oktober[Minggu 4],Oktober[Minggu 5])","v":{"v":0,"d":"0.0"}},{"$f":"TEXT(DATEVALUE(Oktober[[#Headers],[Oktober]]&\" \"&YEAR(TODAY())),\"mmm.\")&\" total: Jam Lembur\"","v":"Okt. total: Jam Lembur"},null,{"$f":"SUM(Oktober[Lembur],Oktober[[Lembur ]],Oktober[[Lembur  ]],Oktober[[Lembur   ]],Oktober[[Lembur    ]])","v":{"v":0,"d":"0.0"}}]
[]
["Masukkan jam reguler dan jam lembur untuk bulan November dalam tabel mulai dari sel E112. Instruksi berikutnya berada dalam sel A121.",{"$nulls":3},"November","Minggu 1","Lembur","Minggu 2","Lembur ","Minggu 3","Lembur  ","Minggu 4","Lembur    ","Minggu 5","Lembur     "]
[{"$nulls":4},"Senin"]
[{"$nulls":4},"Selasa"]
[{"$nulls":4},"Rabu"]
[{"$nulls":4},"Kamis"]
[{"$nulls":4},"Jumat"]
[{"$nulls":4},"Sabtu"]
[{"$nulls":4},"Minggu"]
[{"$nulls":4},"Total jam mingguan",{"$f":"SUBTOTAL(109,November[Minggu 1])","v":{"v":0,"d":"0.0"}},{"$f":"SUBTOTAL(109,November[Lembur])","v":{"v":0,"d":"0.0"}},{"$f":"SUBTOTAL(109,November[Minggu 2])","v":{"v":0,"d":"0.0"}},{"$f":"SUBTOTAL(109,November[[Lembur ]])","v":{"v":0,"d":"0.0"}},{"$f":"SUBTOTAL(109,November[Minggu 3])","v":{"v":0,"d":"0.0"}},{"$f":"SUBTOTAL(109,November[[Lembur  ]])","v":{"v":0,"d":"0.0"}},{"$f":"SUBTOTAL(109,November[Minggu 4])","v":{"v":0,"d":"0.0"}},{"$f":"SUBTOTAL(109,November[[Lembur    ]])","v":{"v":0,"d":"0.0"}},{"$f":"SUBTOTAL(109,November[Minggu 5])","v":{"v":0,"d":"0.0"}},{"$f":"SUBTOTAL(109,November[[Lembur     ]])","v":{"v":0,"d":"0.0"}}]
["Total jam reguler bulan November dalam sel F121 dan total jam lembur bulan November dalam sel I121 akan dihitung secara otomatis. Instruksi berikutnya berada dalam sel A123.",{"$nulls":3},{"$f":"TEXT(DATEVALUE(November[[#Headers],[November]]&\" \"&YEAR(TODAY())),\"mmm.\")&\" total: Jam Reguler\"","v":"Nov. total: Jam Reguler"},{"$f":"SUM(November[Minggu 1],November[Minggu 2],November[Minggu 3],November[Minggu 4],November[Minggu 5])","v":{"v":0,"d":"0.0"}},{"$f":"TEXT(DATEVALUE(November[[#Headers],[November]]&\" \"&YEAR(TODAY())),\"mmm.\")&\" total: Jam Lembur\"","v":"Nov. total: Jam Lembur"},null,{"$f":"SUM(November[Lembur],November[[Lembur ]],November[[Lembur  ]],November[[Lembur    ]],November[[Lembur     ]])","v":{"v":0,"d":"0.0"}}]
[]
["Masukkan jam reguler dan jam lembur untuk bulan Desember dalam tabel mulai dari sel E123. Instruksi berikutnya berada dalam sel A132.",{"$nulls":3},"Desember","Minggu 1","Lembur","Minggu 2","Lembur ","Minggu 3","Lembur  ","Minggu 4","Lembur   ","Minggu 5","Lembur    "]
[{"$nulls":4},"Senin"]
[{"$nulls":4},"Selasa"]
[{"$nulls":4},"Rabu"]
[{"$nulls":4},"Kamis"]
[{"$nulls":4},"Jumat"]
[{"$nulls":4},"Sabtu"]
[{"$nulls":4},"Minggu"]
[{"$nulls":4},"Total jam mingguan",{"$f":"SUBTOTAL(109,Desember[Minggu 1])","v":{"v":0,"d":"0.0"}},{"$f":"SUBTOTAL(109,Desember[Lembur])","v":{"v":0,"d":"0.0"}},{"$f":"SUBTOTAL(109,Desember[Minggu 2])","v":{"v":0,"d":"0.0"}},{"$f":"SUBTOTAL(109,Desember[[Lembur ]])","v":{"v":0,"d":"0.0"}},{"$f":"SUBTOTAL(109,Desember[Minggu 3])","v":{"v":0,"d":"0.0"}},{"$f":"SUBTOTAL(109,Desember[[Lembur  ]])","v":{"v":0,"d":"0.0"}},{"$f":"SUBTOTAL(109,Desember[Minggu 4])","v":{"v":0,"d":"0.0"}},{"$f":"SUBTOTAL(109,Desember[[Lembur   ]])","v":{"v":0,"d":"0.0"}},{"$f":"SUBTOTAL(109,Desember[Minggu 5])","v":{"v":0,"d":"0.0"}},{"$f":"SUBTOTAL(109,Desember[[Lembur    ]])","v":{"v":0,"d":"0.0"}}]
["Total jam reguler bulan Desember dalam sel F132 dan total jam lembur bulan Desember dalam sel I132 akan dihitung secara otomatis.",{"$nulls":3},{"$f":"TEXT(DATEVALUE(Desember[[#Headers],[Desember]]&\" \"&YEAR(TODAY())),\"mmm.\")&\" total: Jam Reguler\"","v":"Des. total: Jam Reguler"},{"$f":"SUM(Desember[Minggu 1],Desember[Minggu 2],Desember[Minggu 3],Desember[Minggu 4],Desember[Minggu 5])","v":{"v":0,"d":"0.0"}},{"$f":"TEXT(DATEVALUE(Desember[[#Headers],[Desember]]&\" \"&YEAR(TODAY())),\"mmm.\")&\" total: Jam Lembur\"","v":"Des. total: Jam Lembur"},null,{"$f":"SUM(G124:G130,I124:I130,K124:K130,M124:M130,O124:O130)","v":{"v":0,"d":"0.0"}}]